[Event "Titled Tuesday Blitz July 25 Early 2023"]
[White "Fernandez Siles, Luis"]
[Black "FoxOnTheRun97"]
[WhiteFideId "2209420"]
[WhiteElo "2306"]
[BlackElo "2550"]
[Result "1-0"]
[Round "4"]
[TimeControl "180+2"]
[Date "2023.07.25"]
[WhiteClock "0:00:18"]
[BlackClock "0:00:12"]
[Board "132"]

1. e4 {[%clk 0:03:00]}  c6 {[%clk 0:02:59]} 2. d4 {[%clk 0:02:59]}  d5 {[%clk 0:03:00]} 3. exd5 {[%clk 0:03:00]}  cxd5 {[%clk 0:03:01]} 4. c4 {[%clk 0:03:00]}  Nf6 {[%clk 0:03:01]} 5. Nc3 {[%clk 0:03:00]}  g6 {[%clk 0:03:01]} 6. cxd5 {[%clk 0:02:59]}  Nxd5 {[%clk 0:02:59]} 7. Qb3 {[%clk 0:02:59]}  Nb6 {[%clk 0:02:55]} 8. Nf3 {[%clk 0:02:56]}  Bg7 {[%clk 0:02:55]} 9. Be3 {[%clk 0:02:53]}  O-O {[%clk 0:02:54]} 10. Be2 {[%clk 0:02:40]}  Be6 {[%clk 0:02:34]} 11. Qb5 {[%clk 0:02:31]}  Qd7 {[%clk 0:02:25]} 12. Qg5 {[%clk 0:02:23]}  Nc6 {[%clk 0:02:16]} 13. Rd1 {[%clk 0:02:16]}  Nd5 {[%clk 0:02:15]} 14. Qh4 {[%clk 0:02:08]}  Rfe8 {[%clk 0:02:08]} 15. Ng5 {[%clk 0:01:55]}  Nxe3 {[%clk 0:01:30]} 16. Qxh7+ {[%clk 0:01:50]}  Kf8 {[%clk 0:01:31]} 17. fxe3 {[%clk 0:01:50]}  Bg4 {[%clk 0:01:26]} 18. O-O {[%clk 0:01:12]}  Bf5 {[%clk 0:01:11]} 19. e4 {[%clk 0:00:39]}  e6 {[%clk 0:00:49]} 20. exf5 {[%clk 0:00:35]}  exf5 {[%clk 0:00:49]} 21. Bc4 {[%clk 0:00:30]}  Re7 {[%clk 0:00:33]} 22. Nd5 {[%clk 0:00:20]}  Rae8 {[%clk 0:00:28]} 23. Nf4 {[%clk 0:00:20]}  Qd6 {[%clk 0:00:12]} 24. Nxg6+ {[%clk 0:00:17]}  Qxg6 {[%clk 0:00:12]} 25. Qxg6 {[%clk 0:00:17]}  fxg6 {[%clk 0:00:12]} 26. Nh7# {[%clk 0:00:18]} 1-0


[Site "https://www.chess.com"]

[Event "Titled Tuesday Blitz July 25 Early 2023"]
[White "Atanasov, Radislav"]
[Black "Ambartsumova, Karina"]
[WhiteFideId "2901471"]
[BlackFideId "4166299"]
[WhiteElo "2261"]
[BlackElo "2547"]
[Result "0-1"]
[Round "4"]
[TimeControl "180+2"]
[Date "2023.07.25"]
[WhiteClock "0:00:03"]
[BlackClock "0:00:29"]
[Board "133"]

1. e4 {[%clk 0:03:00]}  c5 {[%clk 0:02:59]} 2. c3 {[%clk 0:02:58]}  d5 {[%clk 0:02:59]} 3. exd5 {[%clk 0:02:58]}  Qxd5 {[%clk 0:03:00]} 4. d4 {[%clk 0:02:56]}  Nc6 {[%clk 0:03:00]} 5. Nf3 {[%clk 0:02:57]}  Bf5 {[%clk 0:03:00]} 6. Be2 {[%clk 0:02:57]}  e6 {[%clk 0:02:56]} 7. O-O {[%clk 0:02:57]}  Nf6 {[%clk 0:02:54]} 8. Be3 {[%clk 0:02:58]}  cxd4 {[%clk 0:02:54]} 9. cxd4 {[%clk 0:02:57]}  Bxb1 {[%clk 0:02:54]} 10. Qxb1 {[%clk 0:02:45]}  Be7 {[%clk 0:02:53]} 11. a3 {[%clk 0:02:41]}  O-O {[%clk 0:02:51]} 12. Qd3 {[%clk 0:02:27]}  Rfd8 {[%clk 0:02:49]} 13. Rad1 {[%clk 0:02:24]}  a6 {[%clk 0:02:44]} 14. h3 {[%clk 0:02:07]}  Rac8 {[%clk 0:02:43]} 15. Rfe1 {[%clk 0:02:01]}  h6 {[%clk 0:02:38]} 16. Bc1 {[%clk 0:01:52]}  b5 {[%clk 0:02:14]} 17. Bf4 {[%clk 0:01:40]}  Na5 {[%clk 0:01:53]} 18. Ne5 {[%clk 0:01:38]}  Qb3 {[%clk 0:01:51]} 19. Qb1 {[%clk 0:01:31]}  Nc4 {[%clk 0:01:20]} 20. Nxc4 {[%clk 0:01:15]}  bxc4 {[%clk 0:01:21]} 21. Bf3 {[%clk 0:01:09]}  c3 {[%clk 0:01:07]} 22. bxc3 {[%clk 0:00:58]}  Qxb1 {[%clk 0:01:08]} 23. Rxb1 {[%clk 0:00:56]}  Rxc3 {[%clk 0:01:09]} 24. Rb6 {[%clk 0:00:38]}  Rxa3 {[%clk 0:01:04]} 25. Bc7 {[%clk 0:00:26]}  Rxd4 {[%clk 0:00:57]} 26. Be5 {[%clk 0:00:15]}  Rb4 {[%clk 0:00:56]} 27. Rc6 {[%clk 0:00:13]}  Rb5 {[%clk 0:00:34]} 28. Bc3 {[%clk 0:00:10]}  Rc5 {[%clk 0:00:30]} 29. Rxc5 {[%clk 0:00:08]}  Bxc5 {[%clk 0:00:31]} 30. Rc1 {[%clk 0:00:08]}  Ra2 {[%clk 0:00:29]} 31. Bxf6 {[%clk 0:00:06]}  Bxf2+ {[%clk 0:00:29]} 32. Kf1 {[%clk 0:00:06]}  gxf6 {[%clk 0:00:30]} 33. Rc8+ {[%clk 0:00:04]}  Kg7 {[%clk 0:00:31]} 34. Rc7 {[%clk 0:00:04]}  Bg3 {[%clk 0:00:30]} 35. Be2 {[%clk 0:00:03]}  Bxc7 {[%clk 0:00:29]} 0-1


[Site "https://www.chess.com"]

[Event "Titled Tuesday Blitz July 25 Early 2023"]
[White "Mei, Austin"]
[Black "Putri, Regita Desyari"]
[WhiteFideId "30948479"]
[BlackFideId "7109083"]
[WhiteElo "2500"]
[BlackElo "2219"]
[Result "1-0"]
[Round "4"]
[TimeControl "180+2"]
[Date "2023.07.25"]
[WhiteClock "0:01:29"]
[BlackClock "0:00:03"]
[Board "136"]

1. e4 {[%clk 0:03:00]}  e5 {[%clk 0:02:59]} 2. f4 {[%clk 0:02:59]}  exf4 {[%clk 0:02:59]} 3. Nf3 {[%clk 0:02:59]}  d6 {[%clk 0:02:58]} 4. Bc4 {[%clk 0:02:56]}  h6 {[%clk 0:02:58]} 5. b3 {[%clk 0:02:56]}  Nf6 {[%clk 0:02:35]} 6. Nc3 {[%clk 0:02:55]}  g5 {[%clk 0:02:26]} 7. Bb2 {[%clk 0:02:54]}  Bg7 {[%clk 0:02:25]} 8. d4 {[%clk 0:02:47]}  O-O {[%clk 0:02:24]} 9. Qe2 {[%clk 0:02:44]}  c6 {[%clk 0:02:09]} 10. O-O-O {[%clk 0:02:43]}  d5 {[%clk 0:01:42]} 11. Bd3 {[%clk 0:02:42]}  Re8 {[%clk 0:01:07]} 12. Ne5 {[%clk 0:02:37]}  Nbd7 {[%clk 0:00:56]} 13. exd5 {[%clk 0:02:35]}  cxd5 {[%clk 0:00:50]} 14. h4 {[%clk 0:02:22]}  Nxe5 {[%clk 0:00:44]} 15. dxe5 {[%clk 0:02:22]}  Bg4 {[%clk 0:00:44]} 16. Qf2 {[%clk 0:02:14]}  Rxe5 {[%clk 0:00:30]} 17. hxg5 {[%clk 0:02:14]}  hxg5 {[%clk 0:00:27]} 18. Ne2 {[%clk 0:02:01]}  Re7 {[%clk 0:00:17]} 19. Nxf4 {[%clk 0:01:55]}  gxf4 {[%clk 0:00:17]} 20. Qh4 {[%clk 0:01:55]}  d4 {[%clk 0:00:04]} 21. Ba3 {[%clk 0:01:38]}  Re6 {[%clk 0:00:04]} 22. Bh7+ {[%clk 0:01:36]}  Kh8 {[%clk 0:00:01]} 23. Bf5+ {[%clk 0:01:35]}  Kg8 {[%clk 0:00:02]} 24. Bxg4 {[%clk 0:01:29]}  Nxg4 {[%clk 0:00:03]} 25. Qh7# {[%clk 0:01:29]} 1-0


[Site "https://www.chess.com"]

[Event "Titled Tuesday Blitz July 25 Early 2023"]
[White "Balla, Tamas-Kristof"]
[Black "Harsh Suresh"]
[WhiteFideId "1208497"]
[BlackFideId "45018464"]
[WhiteElo "2414"]
[BlackElo "2833"]
[Result "0-1"]
[Round "4"]
[TimeControl "180+2"]
[Date "2023.07.25"]
[WhiteClock "0:00:09"]
[BlackClock "0:00:41"]
[Board "138"]

1. e4 {[%clk 0:03:00]}  g6 {[%clk 0:02:58]} 2. d4 {[%clk 0:02:59]}  Bg7 {[%clk 0:02:58]} 3. Nc3 {[%clk 0:02:58]}  a6 {[%clk 0:02:58]} 4. f4 {[%clk 0:02:58]}  b5 {[%clk 0:02:58]} 5. Nf3 {[%clk 0:02:58]}  Bb7 {[%clk 0:02:58]} 6. Bd3 {[%clk 0:02:51]}  d6 {[%clk 0:02:56]} 7. O-O {[%clk 0:02:50]}  Nd7 {[%clk 0:02:57]} 8. Ne2 {[%clk 0:02:37]}  Ngf6 {[%clk 0:02:50]} 9. Ng3 {[%clk 0:02:35]}  e5 {[%clk 0:02:33]} 10. fxe5 {[%clk 0:02:15]}  dxe5 {[%clk 0:02:34]} 11. dxe5 {[%clk 0:02:12]}  Nxe5 {[%clk 0:02:34]} 12. Nxe5 {[%clk 0:02:07]}  Qd4+ {[%clk 0:02:33]} 13. Kh1 {[%clk 0:02:07]}  Qxe5 {[%clk 0:02:34]} 14. Bf4 {[%clk 0:02:08]}  Qe7 {[%clk 0:02:34]} 15. Bg5 {[%clk 0:01:39]}  Qe6 {[%clk 0:02:30]} 16. e5 {[%clk 0:01:27]}  Nd7 {[%clk 0:02:03]} 17. Be4 {[%clk 0:01:16]}  Bxe4 {[%clk 0:01:59]} 18. Nxe4 {[%clk 0:01:17]}  O-O {[%clk 0:01:36]} 19. Nf6+ {[%clk 0:01:16]}  Bxf6 {[%clk 0:01:36]} 20. Bxf6 {[%clk 0:01:16]}  Nxe5 {[%clk 0:01:29]} 21. Qd4 {[%clk 0:00:41]}  Ng4 {[%clk 0:01:05]} 22. Rae1 {[%clk 0:00:33]}  Qc4 {[%clk 0:01:04]} 23. Qxc4 {[%clk 0:00:15]}  bxc4 {[%clk 0:01:05]} 24. Bc3 {[%clk 0:00:16]}  Rfe8 {[%clk 0:01:04]} 25. Rxe8+ {[%clk 0:00:14]}  Rxe8 {[%clk 0:01:03]} 26. h3 {[%clk 0:00:15]}  Ne3 {[%clk 0:01:01]} 27. Rf4 {[%clk 0:00:15]}  Rd8 {[%clk 0:00:41]} 28. Re4 {[%clk 0:00:14]}  Rd1+ {[%clk 0:00:41]} 29. Kh2 {[%clk 0:00:11]}  Nf1+ {[%clk 0:00:41]} 30. Kg1 {[%clk 0:00:09]}  Nd2+ {[%clk 0:00:41]} 0-1


[Site "https://www.chess.com"]

[Event "Titled Tuesday Blitz July 25 Early 2023"]
[White "Prohaszka, Peter"]
[Black "Zacurdajev, Dmitry"]
[WhiteFideId "726265"]
[BlackFideId "4196309"]
[WhiteElo "2737"]
[BlackElo "2414"]
[Result "1-0"]
[Round "4"]
[TimeControl "180+2"]
[Date "2023.07.25"]
[WhiteClock "0:00:05"]
[BlackClock "0:00:04"]
[Board "139"]

1. d4 {[%clk 0:02:52]}  d5 {[%clk 0:02:59]} 2. Nf3 {[%clk 0:02:51]}  e6 {[%clk 0:03:00]} 3. Bf4 {[%clk 0:02:51]}  Nf6 {[%clk 0:03:00]} 4. e3 {[%clk 0:02:52]}  Bd6 {[%clk 0:03:01]} 5. Nbd2 {[%clk 0:02:51]}  O-O {[%clk 0:03:01]} 6. Ne5 {[%clk 0:02:49]}  c5 {[%clk 0:02:59]} 7. c3 {[%clk 0:02:49]}  b6 {[%clk 0:02:59]} 8. Bd3 {[%clk 0:02:44]}  Ba6 {[%clk 0:02:57]} 9. Bc2 {[%clk 0:02:42]}  Qc7 {[%clk 0:02:54]} 10. h4 {[%clk 0:02:19]}  Nc6 {[%clk 0:02:54]} 11. Ndf3 {[%clk 0:02:17]}  h6 {[%clk 0:02:12]} 12. g4 {[%clk 0:02:03]}  Nd7 {[%clk 0:02:05]} 13. g5 {[%clk 0:01:46]}  Ncxe5 {[%clk 0:01:44]} 14. dxe5 {[%clk 0:01:44]}  Nxe5 {[%clk 0:01:43]} 15. gxh6 {[%clk 0:01:12]}  Nxf3+ {[%clk 0:01:12]} 16. Qxf3 {[%clk 0:01:10]}  Bxf4 {[%clk 0:00:56]} 17. hxg7 {[%clk 0:01:06]}  Kxg7 {[%clk 0:00:56]} 18. exf4 {[%clk 0:00:53]}  Kf6 {[%clk 0:00:54]} 19. O-O-O {[%clk 0:00:47]}  Rh8 {[%clk 0:00:44]} 20. h5 {[%clk 0:00:15]}  Ke7 {[%clk 0:00:20]} 21. h6 {[%clk 0:00:15]}  b5 {[%clk 0:00:14]} 22. Rdg1 {[%clk 0:00:09]}  b4 {[%clk 0:00:14]} 23. Rg7 {[%clk 0:00:07]}  Qa5 {[%clk 0:00:08]} 24. f5 {[%clk 0:00:07]}  Qb5 {[%clk 0:00:02]} 25. fxe6 {[%clk 0:00:06]}  Kd6 {[%clk 0:00:02]} 26. Qxf7 {[%clk 0:00:05]}  Rad8 {[%clk 0:00:03]} 27. Qc7+ {[%clk 0:00:05]}  Kxe6 {[%clk 0:00:03]} 28. Re1+ {[%clk 0:00:05]}  Qe2 {[%clk 0:00:03]} 29. Rxe2+ {[%clk 0:00:05]}  Bxe2 {[%clk 0:00:04]} 30. Qe7# {[%clk 0:00:05]} 1-0


[Site "https://www.chess.com"]

[Event "Titled Tuesday Blitz July 25 Early 2023"]
[White "Todev, Simeon"]
[Black "Seemann, Jakub"]
[WhiteFideId "2925133"]
[BlackFideId "21874697"]
[WhiteElo "2414"]
[BlackElo "2647"]
[Result "0-1"]
[Round "4"]
[TimeControl "180+2"]
[Date "2023.07.25"]
[WhiteClock "0:00:06"]
[BlackClock "0:01:40"]
[Board "140"]

1. e4 {[%clk 0:03:00]}  c6 {[%clk 0:02:59]} 2. d4 {[%clk 0:02:59]}  d5 {[%clk 0:03:00]} 3. exd5 {[%clk 0:02:58]}  cxd5 {[%clk 0:03:00]} 4. c4 {[%clk 0:02:58]}  Nf6 {[%clk 0:03:00]} 5. Nf3 {[%clk 0:02:58]}  Nc6 {[%clk 0:03:01]} 6. Nc3 {[%clk 0:02:57]}  a6 {[%clk 0:03:00]} 7. cxd5 {[%clk 0:02:57]}  Nxd5 {[%clk 0:03:00]} 8. Bc4 {[%clk 0:02:58]}  Be6 {[%clk 0:02:59]} 9. Qe2 {[%clk 0:02:57]}  Nxc3 {[%clk 0:02:59]} 10. bxc3 {[%clk 0:02:56]}  Bxc4 {[%clk 0:03:00]} 11. Qxc4 {[%clk 0:02:57]}  e6 {[%clk 0:03:00]} 12. O-O {[%clk 0:02:57]}  Be7 {[%clk 0:03:00]} 13. Re1 {[%clk 0:02:57]}  O-O {[%clk 0:03:00]} 14. a4 {[%clk 0:02:56]}  Qd7 {[%clk 0:03:00]} 15. Ba3 {[%clk 0:02:53]}  Rfd8 {[%clk 0:02:58]} 16. Bxe7 {[%clk 0:02:53]}  Qxe7 {[%clk 0:02:59]} 17. Rab1 {[%clk 0:02:52]}  Rac8 {[%clk 0:02:59]} 18. Qd3 {[%clk 0:02:45]}  Na5 {[%clk 0:02:53]} 19. Ne5 {[%clk 0:02:40]}  Qa3 {[%clk 0:02:52]} 20. Qf3 {[%clk 0:02:22]}  f6 {[%clk 0:02:51]} 21. Ng4 {[%clk 0:02:17]}  Rxc3 {[%clk 0:02:50]} 22. Qe4 {[%clk 0:02:04]}  Qd6 {[%clk 0:02:45]} 23. Rbd1 {[%clk 0:01:47]}  f5 {[%clk 0:02:39]} 24. Qe5 {[%clk 0:01:43]}  Nc6 {[%clk 0:02:34]} 25. Qxd6 {[%clk 0:01:35]}  Rxd6 {[%clk 0:02:35]} 26. Ne3 {[%clk 0:01:27]}  Rxd4 {[%clk 0:02:33]} 27. Rb1 {[%clk 0:01:25]}  Rb4 {[%clk 0:02:32]} 28. Rbd1 {[%clk 0:01:23]}  Nd4 {[%clk 0:02:31]} 29. Kf1 {[%clk 0:01:20]}  Rxa4 {[%clk 0:02:27]} 30. Rd2 {[%clk 0:01:19]}  Kf7 {[%clk 0:02:24]} 31. Red1 {[%clk 0:01:17]}  e5 {[%clk 0:02:25]} 32. f4 {[%clk 0:01:17]}  exf4 {[%clk 0:02:21]} 33. Nd5 {[%clk 0:01:17]}  Rcc4 {[%clk 0:02:03]} 34. Nb6 {[%clk 0:01:16]}  Nb3 {[%clk 0:02:01]} 35. Rd7+ {[%clk 0:00:51]}  Kg6 {[%clk 0:01:53]} 36. R1d6+ {[%clk 0:00:38]}  Kh5 {[%clk 0:01:54]} 37. Nxa4 {[%clk 0:00:37]}  Rxa4 {[%clk 0:01:54]} 38. Rxb7 {[%clk 0:00:34]}  Ra1+ {[%clk 0:01:48]} 39. Kf2 {[%clk 0:00:32]}  Nc5 {[%clk 0:01:48]} 40. Re7 {[%clk 0:00:04]}  Ne4+ {[%clk 0:01:48]} 41. Rxe4 {[%clk 0:00:05]}  fxe4 {[%clk 0:01:49]} 42. Rd5+ {[%clk 0:00:05]}  g5 {[%clk 0:01:48]} 43. Rd7 {[%clk 0:00:04]}  Ra2+ {[%clk 0:01:47]} 44. Kf1 {[%clk 0:00:05]}  h6 {[%clk 0:01:48]} 45. h3 {[%clk 0:00:05]}  e3 {[%clk 0:01:48]} 46. Rd6 {[%clk 0:00:05]}  Kh4 {[%clk 0:01:48]} 47. Rxh6+ {[%clk 0:00:06]}  Kg3 {[%clk 0:01:48]} 48. Rg6 {[%clk 0:00:06]}  Rf2+ {[%clk 0:01:39]} 49. Ke1 {[%clk 0:00:06]}  Kxg2 {[%clk 0:01:40]} 50. Rxg5+ {[%clk 0:00:07]}  Kf3 {[%clk 0:01:40]} 51. Rg6 {[%clk 0:00:07]}  Ra2 {[%clk 0:01:41]} 52. Kd1 {[%clk 0:00:06]}  e2+ {[%clk 0:01:40]} 53. Ke1 {[%clk 0:00:06]}  Ra1+ {[%clk 0:01:40]} 0-1


[Site "https://www.chess.com"]

[Event "Titled Tuesday Blitz July 25 Early 2023"]
[White "i_like_explosions"]
[Black "Iskusnyh, Sergei"]
[BlackFideId "4120027"]
[WhiteElo "2413"]
[BlackElo "2625"]
[Result "0-1"]
[Round "4"]
[TimeControl "180+2"]
[Date "2023.07.25"]
[WhiteClock "0:00:01"]
[BlackClock "0:00:12"]
[Board "141"]

1. d4 {[%clk 0:02:59]}  d5 {[%clk 0:02:56]} 2. c4 {[%clk 0:02:58]}  c6 {[%clk 0:02:56]} 3. cxd5 {[%clk 0:02:53]}  cxd5 {[%clk 0:02:55]} 4. Nc3 {[%clk 0:02:54]}  Nf6 {[%clk 0:02:55]} 5. f3 {[%clk 0:02:54]}  Nc6 {[%clk 0:02:55]} 6. e4 {[%clk 0:02:54]}  e6 {[%clk 0:02:47]} 7. e5 {[%clk 0:02:52]}  Nd7 {[%clk 0:02:47]} 8. f4 {[%clk 0:02:49]}  Be7 {[%clk 0:02:45]} 9. Nf3 {[%clk 0:02:47]}  O-O {[%clk 0:02:45]} 10. Be3 {[%clk 0:02:30]}  f5 {[%clk 0:02:43]} 11. h4 {[%clk 0:02:28]}  Nb6 {[%clk 0:02:40]} 12. Kf2 {[%clk 0:02:21]}  Nc4 {[%clk 0:02:38]} 13. Bxc4 {[%clk 0:02:18]}  dxc4 {[%clk 0:02:38]} 14. d5 {[%clk 0:02:18]}  exd5 {[%clk 0:02:34]} 15. Qxd5+ {[%clk 0:02:17]}  Kh8 {[%clk 0:02:25]} 16. Rad1 {[%clk 0:02:14]}  Qe8 {[%clk 0:01:56]} 17. Qxc4 {[%clk 0:02:08]}  Be6 {[%clk 0:01:56]} 18. Qb5 {[%clk 0:02:00]}  a6 {[%clk 0:01:51]} 19. Qb6 {[%clk 0:01:56]}  Rc8 {[%clk 0:01:27]} 20. Ng5 {[%clk 0:01:47]}  Bg8 {[%clk 0:01:25]} 21. Qxb7 {[%clk 0:01:41]}  Rb8 {[%clk 0:01:21]} 22. Qxa6 {[%clk 0:01:24]}  Rxb2+ {[%clk 0:01:21]} 23. Rd2 {[%clk 0:00:56]}  Rb4 {[%clk 0:00:50]} 24. Rhd1 {[%clk 0:00:44]}  Bc4 {[%clk 0:00:40]} 25. Qa3 {[%clk 0:00:24]}  Qh5 {[%clk 0:00:32]} 26. g3 {[%clk 0:00:11]}  Bxg5 {[%clk 0:00:28]} 27. fxg5 {[%clk 0:00:06]}  Nxe5 {[%clk 0:00:27]} 28. Qxb4 {[%clk 0:00:02]}  Qf3+ {[%clk 0:00:26]} 29. Kg1 {[%clk 0:00:02]}  Qxg3+ {[%clk 0:00:26]} 30. Kh1 {[%clk 0:00:02]}  Qxh4+ {[%clk 0:00:15]} 31. Kg2 {[%clk 0:00:02]}  Rg8 {[%clk 0:00:12]} 32. Bf2 {[%clk 0:00:02]}  Bf1+ {[%clk 0:00:12]} 33. Kxf1 {[%clk 0:00:02]}  Qxb4 {[%clk 0:00:12]} 34. Nd5 {[%clk 0:00:01]}  Qc4+ {[%clk 0:00:12]} 0-1


[Site "https://www.chess.com"]

[Event "Titled Tuesday Blitz July 25 Early 2023"]
[White "Ganiev, Roman"]
[Black "Rios Escobar, Adan"]
[WhiteFideId "4131452"]
[BlackFideId "3403645"]
[WhiteElo "2611"]
[BlackElo "2412"]
[Result "1-0"]
[Round "4"]
[TimeControl "180+2"]
[Date "2023.07.25"]
[WhiteClock "0:00:58"]
[BlackClock "0:00:25"]
[Board "142"]

1. e4 {[%clk 0:02:57]}  c5 {[%clk 0:02:59]} 2. Nf3 {[%clk 0:02:57]}  d6 {[%clk 0:02:59]} 3. d4 {[%clk 0:02:57]}  cxd4 {[%clk 0:03:00]} 4. Nxd4 {[%clk 0:02:58]}  Nf6 {[%clk 0:02:59]} 5. Nc3 {[%clk 0:02:58]}  a6 {[%clk 0:03:00]} 6. h3 {[%clk 0:02:58]}  e5 {[%clk 0:02:58]} 7. Nde2 {[%clk 0:02:58]}  h5 {[%clk 0:02:55]} 8. Bg5 {[%clk 0:02:56]}  Nbd7 {[%clk 0:02:50]} 9. g3 {[%clk 0:02:55]}  b5 {[%clk 0:02:46]} 10. Bg2 {[%clk 0:02:54]}  Bb7 {[%clk 0:02:47]} 11. a3 {[%clk 0:02:53]}  Rc8 {[%clk 0:02:44]} 12. O-O {[%clk 0:02:52]}  Qc7 {[%clk 0:02:39]} 13. Qd2 {[%clk 0:02:50]}  Be7 {[%clk 0:02:31]} 14. Rad1 {[%clk 0:02:49]}  O-O {[%clk 0:02:30]} 15. g4 {[%clk 0:02:45]}  hxg4 {[%clk 0:02:24]} 16. hxg4 {[%clk 0:02:45]}  Rfd8 {[%clk 0:02:06]} 17. Ng3 {[%clk 0:02:45]}  g6 {[%clk 0:01:54]} 18. Qe2 {[%clk 0:02:15]}  Nf8 {[%clk 0:01:37]} 19. Qf3 {[%clk 0:02:08]}  N8h7 {[%clk 0:01:33]} 20. Be3 {[%clk 0:02:08]}  Qd7 {[%clk 0:01:20]} 21. g5 {[%clk 0:02:05]}  Ne8 {[%clk 0:01:13]} 22. Nge2 {[%clk 0:01:41]}  Rc4 {[%clk 0:01:05]} 23. Qg3 {[%clk 0:01:38]}  Bc6 {[%clk 0:00:56]} 24. Bf3 {[%clk 0:01:38]}  Qb7 {[%clk 0:00:55]} 25. Kg2 {[%clk 0:01:36]}  Ng7 {[%clk 0:00:50]} 26. Rh1 {[%clk 0:01:35]}  Nh5 {[%clk 0:00:48]} 27. Bxh5 {[%clk 0:01:10]}  gxh5 {[%clk 0:00:48]} 28. f3 {[%clk 0:01:06]}  Nf8 {[%clk 0:00:39]} 29. Rxh5 {[%clk 0:01:04]}  Ng6 {[%clk 0:00:38]} 30. Rdh1 {[%clk 0:00:58]}  d5 {[%clk 0:00:25]} 31. Qh3 {[%clk 0:00:58]} 1-0


[Site "https://www.chess.com"]

[Event "Titled Tuesday Blitz July 25 Early 2023"]
[White "Hoffmann, Asa"]
[Black "Agibileg, Uurtsaikh"]
[WhiteFideId "2001470"]
[BlackFideId "4901606"]
[WhiteElo "2411"]
[BlackElo "2599"]
[Result "0-1"]
[Round "4"]
[TimeControl "180+2"]
[Date "2023.07.25"]
[WhiteClock "0:00:24"]
[BlackClock "0:00:12"]
[Board "143"]

1. d4 {[%clk 0:02:57]}  Nf6 {[%clk 0:02:59]} 2. Bg5 {[%clk 0:02:53]}  Ne4 {[%clk 0:02:53]} 3. Bf4 {[%clk 0:02:53]}  g6 {[%clk 0:02:52]} 4. f3 {[%clk 0:02:52]}  Nf6 {[%clk 0:02:53]} 5. e4 {[%clk 0:02:52]}  Bg7 {[%clk 0:02:53]} 6. Nc3 {[%clk 0:02:52]}  d6 {[%clk 0:02:53]} 7. Qd2 {[%clk 0:02:52]}  O-O {[%clk 0:02:52]} 8. O-O-O {[%clk 0:02:51]}  a6 {[%clk 0:02:48]} 9. Bh6 {[%clk 0:02:51]}  b5 {[%clk 0:02:46]} 10. h4 {[%clk 0:02:51]}  Re8 {[%clk 0:02:27]} 11. h5 {[%clk 0:02:50]}  Bh8 {[%clk 0:02:27]} 12. hxg6 {[%clk 0:02:45]}  hxg6 {[%clk 0:02:27]} 13. Nh3 {[%clk 0:02:43]}  Bb7 {[%clk 0:02:25]} 14. Qg5 {[%clk 0:02:38]}  Nc6 {[%clk 0:02:08]} 15. Nf4 {[%clk 0:02:36]}  Nh7 {[%clk 0:01:22]} 16. Qg3 {[%clk 0:02:34]}  Nf8 {[%clk 0:00:56]} 17. Bxf8 {[%clk 0:02:33]}  Rxf8 {[%clk 0:00:56]} 18. Nxg6 {[%clk 0:02:31]}  fxg6 {[%clk 0:00:53]} 19. Bc4+ {[%clk 0:02:09]}  Kg7 {[%clk 0:00:44]} 20. Be6 {[%clk 0:01:47]}  Bc8 {[%clk 0:00:29]} 21. Bd5 {[%clk 0:01:39]}  Qe8 {[%clk 0:00:29]} 22. Qh4 {[%clk 0:01:36]}  e6 {[%clk 0:00:28]} 23. Qh7+ {[%clk 0:01:32]}  Kf6 {[%clk 0:00:28]} 24. Qxc7 {[%clk 0:01:30]}  exd5 {[%clk 0:00:22]} 25. Nxd5+ {[%clk 0:01:27]}  Ke6 {[%clk 0:00:21]} 26. Qh7 {[%clk 0:01:10]}  Ra7 {[%clk 0:00:19]} 27. Nc7+ {[%clk 0:00:57]}  Rxc7 {[%clk 0:00:19]} 28. Qxc7 {[%clk 0:00:56]}  Bxd4 {[%clk 0:00:17]} 29. c3 {[%clk 0:00:50]}  Be5 {[%clk 0:00:16]} 30. Kb1 {[%clk 0:00:44]}  Rf7 {[%clk 0:00:15]} 31. Qb6 {[%clk 0:00:41]}  Kd7 {[%clk 0:00:14]} 32. Qf2 {[%clk 0:00:35]}  g5 {[%clk 0:00:13]} 33. g3 {[%clk 0:00:35]}  Kc7 {[%clk 0:00:13]} 34. Qe3 {[%clk 0:00:31]}  Qe7 {[%clk 0:00:13]} 35. f4 {[%clk 0:00:30]}  gxf4 {[%clk 0:00:13]} 36. gxf4 {[%clk 0:00:30]}  Bxf4 {[%clk 0:00:14]} 37. Qd3 {[%clk 0:00:26]}  Bb7 {[%clk 0:00:14]} 38. Rh8 {[%clk 0:00:24]}  Nb4 {[%clk 0:00:12]} 0-1


[Site "https://www.chess.com"]

[Event "Titled Tuesday Blitz July 25 Early 2023"]
[White "Castaneda, Jhon David"]
[Black "Gracia Alvarez, Gerardo Antonio"]
[WhiteFideId "4405048"]
[BlackFideId "5109124"]
[WhiteElo "2589"]
[BlackElo "2411"]
[Result "1-0"]
[Round "4"]
[TimeControl "180+2"]
[Date "2023.07.25"]
[WhiteClock "0:00:49"]
[BlackClock "0:01:00"]
[Board "144"]

1. d4 {[%clk 0:02:54]}  Nf6 {[%clk 0:02:58]} 2. Nf3 {[%clk 0:02:55]}  g6 {[%clk 0:02:59]} 3. c4 {[%clk 0:02:55]}  Bg7 {[%clk 0:02:58]} 4. Nc3 {[%clk 0:02:55]}  O-O {[%clk 0:02:58]} 5. e4 {[%clk 0:02:55]}  d6 {[%clk 0:02:59]} 6. Be2 {[%clk 0:02:55]}  c5 {[%clk 0:02:58]} 7. d5 {[%clk 0:02:54]}  e6 {[%clk 0:02:59]} 8. O-O {[%clk 0:02:53]}  exd5 {[%clk 0:02:57]} 9. cxd5 {[%clk 0:02:54]}  Re8 {[%clk 0:02:53]} 10. Nd2 {[%clk 0:02:53]}  Nbd7 {[%clk 0:02:52]} 11. f3 {[%clk 0:02:53]}  a6 {[%clk 0:02:51]} 12. a4 {[%clk 0:02:51]}  Rb8 {[%clk 0:02:50]} 13. Nc4 {[%clk 0:02:50]}  Ne5 {[%clk 0:02:48]} 14. Na3 {[%clk 0:02:50]}  h6 {[%clk 0:02:43]} 15. f4 {[%clk 0:02:45]}  Ned7 {[%clk 0:02:42]} 16. Bf3 {[%clk 0:02:42]}  Nf8 {[%clk 0:02:37]} 17. Re1 {[%clk 0:02:33]}  N6d7 {[%clk 0:02:35]} 18. Nc4 {[%clk 0:02:30]}  Qc7 {[%clk 0:02:30]} 19. a5 {[%clk 0:02:21]}  b5 {[%clk 0:02:30]} 20. axb6 {[%clk 0:02:21]}  Nxb6 {[%clk 0:02:31]} 21. Na5 {[%clk 0:02:18]}  Bd7 {[%clk 0:02:25]} 22. Be3 {[%clk 0:02:07]}  Bb5 {[%clk 0:02:19]} 23. Nxb5 {[%clk 0:02:05]}  axb5 {[%clk 0:02:20]} 24. Nc6 {[%clk 0:02:06]}  Ra8 {[%clk 0:02:20]} 25. Qb3 {[%clk 0:01:48]}  Nc4 {[%clk 0:02:12]} 26. Rxa8 {[%clk 0:01:34]}  Rxa8 {[%clk 0:02:13]} 27. Bc1 {[%clk 0:01:33]}  Ra1 {[%clk 0:01:53]} 28. e5 {[%clk 0:01:23]}  dxe5 {[%clk 0:01:42]} 29. Qxb5 {[%clk 0:01:21]}  Nd6 {[%clk 0:01:13]} 30. Qxc5 {[%clk 0:01:17]}  e4 {[%clk 0:01:04]} 31. Bxe4 {[%clk 0:00:49]}  Bxb2 {[%clk 0:01:04]} 32. Bd2 {[%clk 0:00:48]}  Rxe1+ {[%clk 0:01:00]} 33. Bxe1 {[%clk 0:00:49]}  Nxe4 {[%clk 0:01:00]} 34. Ne7+ {[%clk 0:00:49]} 1-0


[Site "https://www.chess.com"]